fUSD/lending_fUSD_20240814
["ID","MTS","AMOUNT","RATE_DAILY","PERIOD"]
[334842602,1723607486964,-1060.55,0.00015068,2]
[334842603,1723607486980,-500.0,0.00015068,2]
[334842604,1723607486995,-500.0,0.00015068,2]
[334842605,1723607487011,-500.0,0.00015068,2]
[334842606,1723607487027,-500.0,0.00015068,2]
[334842607,1723607487041,-500.0,0.00015068,2]
[334842608,1723607487056,-799.52,0.00015068,2]
[334842609,1723607487073,-500.0,0.00015068,2]
[334842610,1723607487084,-199.52910054,0.00015068,2]
[334842611,1723607487097,-500.0,0.00015068,2]
[334842612,1723607487112,-1647.39,0.00015068,2]
[334842613,1723607487130,-612.24,0.00015068,2]
[334842614,1723607487147,-500.0,0.00015068,2]
[334842615,1723607487163,-602.48347892,0.00015068,2]
[334842616,1723607487173,-500.0,0.00015068,2]
[334842617,1723607487187,-500.0,0.00015068,2]
[334842618,1723607487204,-611.16,0.00015068,2]
[334842619,1723607487215,-500.0,0.00015068,2]
[334842620,1723607487230,-500.0,0.00015068,2]
[334842621,1723607487244,-1328.0,0.00015068,2]
[334842622,1723607487256,-404.31385427,0.00015068,2]
[334842623,1723607487269,-1488.34,0.00015068,2]
[334842624,1723607487283,-609.98,0.00015068,2]
[334842625,1723607487297,-734.92,0.00015068,2]
[334842626,1723607487310,-518.07,0.00015068,2]
[334842627,1723607487323,-500.0,0.00015068,2]
[334842628,1723607487336,-1665.35,0.00015068,2]
[334842629,1723607487349,-500.0,0.00015068,2]
[334842630,1723607487361,-500.0,0.00015068,2]
[334842631,1723607487374,-1119.92,0.00015068,2]
[334842632,1723607487388,-500.0,0.00015068,2]
[334842633,1723607487401,-1027.86,0.00015068,2]
[334842634,1723607487415,-507.19,0.00015068,2]
[334842635,1723607487428,-500.0,0.00015068,2]
[334842636,1723607487441,-500.0,0.00015068,2]
[334842637,1723607487454,-500.0,0.00015068,2]
[334842638,1723607487467,-583.56,0.00015068,2]
[334842639,1723607487481,-500.0,0.00015068,2]
[334842640,1723607487494,-1665.72,0.00015068,2]
[334842641,1723607487509,-500.0,0.00015068,2]
[334842642,1723607487522,-543.84,0.00015068,2]
[334842643,1723607487535,-500.0,0.00015068,2]
[334842644,1723607487548,-703.07,0.00015068,2]
[334842645,1723607487561,-667.07,0.00015068,2]
[334842646,1723607487574,-731.8,0.00015068,2]
[334842647,1723607487587,-500.0,0.00015068,2]
[334842648,1723607487599,-500.0,0.00015068,2]
[334842649,1723607487612,-500.0,0.00015068,2]
[334842650,1723607487624,-654.55,0.00015068,2]
[334842651,1723607487636,-1474.25,0.00015068,2]
[334842652,1723607487652,-935.71,0.00015068,2]
[334842653,1723607487665,-500.0,0.00015068,2]
[334842654,1723607487679,-795.43,0.00015068,2]
[334842655,1723607487692,-500.0,0.00015068,2]
[334842656,1723607487705,-500.0,0.00015068,2]
[334842657,1723607487717,-1291.26,0.00015068,2]
[334842658,1723607487730,-157.056626,0.00015068,2]
[334842659,1723607487742,-500.0,0.00015068,2]
[334842660,1723607487755,-1621.49,0.00015068,2]
[334842661,1723607487768,-500.0,0.00015068,2]
[334842662,1723607487780,-1600.49,0.00015068,2]
[334842663,1723607487794,-553.51,0.00015068,2]
[334842664,1723607487806,-1806.84,0.00015068,2]
[334842665,1723607487818,-712.18,0.00015068,2]
[334842666,1723607487831,-152.506682,0.00015068,2]
[334842667,1723607487843,-521.1,0.00015068,2]
[334842668,1723607487856,-1895.99,0.00015068,2]
[334842669,1723607487869,-1723.01,0.00015068,2]
[334842670,1723607487881,-1877.59,0.00015068,2]
[334842671,1723607487896,-500.0,0.00015068,2]
[334842672,1723607487909,-500.0,0.00015068,2]
[334842673,1723607487921,-631.87,0.00015068,2]
[334842674,1723607487933,-843.0,0.00015068,2]
[334842675,1723607487946,-997.63,0.00015068,2]
[334842676,1723607487958,-500.0,0.00015068,2]
[334842677,1723607487974,-244.21706121,0.00015068,2]
[334842678,1723607487987,-500.0,0.00015068,2]
[334842679,1723607488000,-500.0,0.00015068,2]
[334842680,1723607488012,-500.0,0.00015068,2]
[334842681,1723607488025,-500.0,0.00015068,2]
[334842682,1723607488037,-1073.69,0.00015068,2]
[334842683,1723607488049,-903.82,0.00015068,2]
[334842684,1723607488062,-1215.4,0.00015068,2]
[334842685,1723607488075,-674.42,0.00015068,2]
[334842686,1723607488088,-1082.37,0.00015068,2]
[334842687,1723607488101,-1982.45,0.00015068,2]
[334842688,1723607488115,-2111.74,0.00015068,2]
[334842689,1723607488130,-1233.9,0.00015068,2]
[334842690,1723607488145,-3815.52,0.00015068,2]
[334842691,1723607488158,-500.0,0.00015068,2]
[334842692,1723607488172,-848.59,0.00015068,2]
[334842693,1723607488185,-2334.24,0.00015068,2]
[334842694,1723607488198,-718.84,0.00015068,2]
[334842695,1723607488212,-500.0,0.00015068,2]
[334842696,1723607488226,-1454.45,0.00015068,2]
[334842697,1723607488238,-500.0,0.00015068,2]
[334842698,1723607488251,-996.86,0.00015068,2]
[334842699,1723607488263,-500.0,0.00015068,2]
[334842700,1723607488277,-1146.42,0.00015068,2]
[334842701,1723607488290,-1413.89,0.00015068,2]
[334842702,1723607488303,-1306.14,0.00015068,2]
[334842703,1723607488316,-500.0,0.00015068,2]
[334842704,1723607488328,-851.44,0.00015068,2]
[334842705,1723607488341,-2059.77,0.00015068,2]
[334842706,1723607488353,-1108.11,0.00015068,2]
[334842707,1723607488366,-592.2,0.00015068,2]
[334842708,1723607488379,-701.35,0.00015068,2]
[334842709,1723607488395,-863.81,0.00015068,2]
[334842710,1723607488409,-842.9,0.00015068,2]
[334842711,1723607488422,-1173.01,0.00015068,2]
[334842712,1723607488435,-500.0,0.00015068,2]
[334842713,1723607488448,-640.01,0.00015068,2]
[334842714,1723607488461,-500.0,0.00015068,2]
[334842715,1723607488474,-500.0,0.00015068,2]
[334842716,1723607488487,-413.95911858,0.00015068,2]
[334842717,1723607488500,-1366.52,0.00015068,2]
[334842718,1723607488513,-1120.85,0.00015068,2]
[334842719,1723607488526,-500.0,0.00015068,2]
[334842720,1723607488539,-500.0,0.00015068,2]
[334842721,1723607488552,-666.14,0.00015068,2]
[334842722,1723607488564,-527.01,0.00015068,2]
[334842723,1723607488577,-1258.07,0.00015068,2]
[334842724,1723607488590,-1024.41,0.00015068,2]
[334842725,1723607488603,-500.0,0.00015068,2]
[334842726,1723607488616,-500.0,0.00015068,2]
[334842727,1723607488629,-2173.7,0.00015068,2]
[334842728,1723607488643,-1345.95,0.00015068,2]
[334842729,1723607488655,-984.97,0.00015068,2]
[334842730,1723607488668,-2468.39,0.00015068,2]
[334842731,1723607488681,-500.0,0.00015068,2]
[334842732,1723607488694,-500.0,0.00015068,2]
[334842733,1723607488707,-737.25,0.00015068,2]
[334842734,1723607488720,-990.66,0.00015068,2]
[334842735,1723607488733,-836.37,0.00015068,2]
[334842736,1723607488746,-652.06,0.00015068,2]
[334842737,1723607488760,-1124.45,0.00015068,2]
[334842738,1723607488772,-617.29,0.00015068,2]
[334842739,1723607488784,-657.84,0.00015068,2]
[334842740,1723607488797,-1513.15,0.00015068,2]
[334842741,1723607488810,-1128.09,0.00015068,2]
[334842742,1723607488822,-500.0,0.00015068,2]
[334842743,1723607488835,-1593.05,0.00015068,2]
[334842744,1723607488848,-1465.45,0.00015068,2]
[334842745,1723607488861,-512.37,0.00015068,2]
[334842746,1723607488875,-1433.68,0.00015068,2]
[334842747,1723607488889,-500.0,0.00015068,2]
[334842748,1723607488901,-1436.38,0.00015068,2]
[334842749,1723607488914,-566.62,0.00015068,2]
[334842750,1723607488927,-520.36637084,0.00015068,2]
[334842751,1723607488940,-500.0,0.00015068,2]
[334842752,1723607488952,-980.27,0.00015068,2]
[334842753,1723607488966,-1757.62,0.00015068,2]
[334842754,1723607488978,-1090.22,0.00015068,2]
[334842755,1723607488990,-2446.57,0.00015068,2]
[334842756,1723607489003,-2344.16,0.00015068,2]
[334842757,1723607489015,-500.0,0.00015068,2]
[334842758,1723607489039,-500.0,0.00015068,2]
[334842759,1723607489052,-500.0,0.00015068,2]
[334842760,1723607489065,-1919.8,0.00015068,2]
[334842761,1723607489077,-850.36,0.00015068,2]
[334842762,1723607489089,-743.85,0.00015068,2]
[334842763,1723607489102,-500.0,0.00015068,2]
[334842764,1723607489122,-2805.57,0.00015068,2]
[334842765,1723607489137,-713.35,0.00015068,2]
[334842766,1723607489150,-536.68,0.00015068,2]
[334842767,1723607489163,-654.34,0.00015068,2]
[334842768,1723607489177,-500.0,0.00015068,2]
[334842769,1723607489190,-557.78,0.00015068,2]
[334842770,1723607489203,-500.0,0.00015068,2]
[334842771,1723607489217,-738.54,0.00015068,2]
[334842772,1723607489229,-500.0,0.00015068,2]
[334842773,1723607489242,-1222.0,0.00015068,2]
[334842774,1723607489254,-3268.85,0.00015068,2]
[334842775,1723607489267,-1232.17,0.00015068,2]
[334842776,1723607489279,-759.17,0.00015068,2]
[334842777,1723607489291,-1276.5,0.00015068,2]
[334842778,1723607489304,-1227.19,0.00015068,2]
[334842779,1723607489318,-660.75,0.00015068,2]
[334842780,1723607489327,-1099.44,0.00015068,2]
[334842781,1723607489337,-500.0,0.00015068,2]
[334842782,1723607489347,-2090.28,0.00015068,2]
[334842783,1723607489356,-500.0,0.00015068,2]
[334842784,1723607489365,-508.15,0.00015068,2]
[334842785,1723607489375,-500.0,0.00015068,2]
[334842786,1723607489385,-500.0,0.00015068,2]
[334842787,1723607489395,-793.09,0.00015068,2]
[334842788,1723607489405,-500.0,0.00015068,2]
[334842789,1723607489415,-500.0,0.00015068,2]
[334842790,1723607489426,-808.2,0.00015068,2]
[334842791,1723607489435,-1244.25,0.00015068,2]
[334842792,1723607489444,-1870.71,0.00015068,2]
[334842793,1723607489453,-500.0,0.00015068,2]
[334842794,1723607489462,-1020.02,0.00015068,2]
[334842795,1723607489471,-500.0,0.00015068,2]
[334842796,1723607489481,-1386.1,0.00015068,2]
[334842797,1723607489491,-732.86,0.00015068,2]
[334842798,1723607489500,-566.05592437,0.00015068,2]
[334842799,1723607489509,-500.0,0.00015068,2]
[334842800,1723607489518,-500.0,0.00015068,2]
[334842801,1723607489527,-1778.14,0.00015068,2]
[334842802,1723607489536,-400.0,0.00015068,2]
[334842803,1723607489546,-1254.8,0.00015068,2]
[334842804,1723607489555,-2294.9,0.00015068,2]
[334842805,1723607489564,-500.0,0.00015068,2]
[334842806,1723607489574,-1685.71,0.00015068,2]
[334842807,1723607489583,-1045.4,0.00015068,2]
[334842808,1723607489592,-769.79,0.00015068,2]
[334842809,1723607489602,-500.0,0.00015068,2]
[334842810,1723607489611,-829.12,0.00015068,2]
[334842811,1723607489621,-1819.06,0.00015068,2]
[334842812,1723607489629,-584.66,0.00015068,2]
[334842813,1723607489639,-865.12,0.00015068,2]
[334842814,1723607489650,-1828.3,0.00015068,2]
[334842815,1723607489661,-1487.62,0.00015068,2]
[334842816,1723607489670,-1120.95,0.00015068,2]
[334842817,1723607489680,-1122.91,0.00015068,2]
[334842818,1723607489689,-862.4,0.00015068,2]
[334842819,1723607489699,-849.24,0.00015068,2]
[334842820,1723607490237,-1564.47,0.00015068,2]
[334842821,1723607490256,-500.0,0.00015068,2]
[334842822,1723607490276,-866.92,0.00015068,2]
[334842823,1723607490300,-500.0,0.00015068,2]
[334842824,1723607490319,-1212.45,0.00015068,2]
[334842825,1723607490348,-1055.57,0.00015068,2]
[334842826,1723607490361,-2613.0,0.00015068,2]
[334842827,1723607490370,-1994.05,0.00015068,2]
[334842828,1723607490379,-857.51,0.00015068,2]
[334842829,1723607490388,-1338.26,0.00015068,2]
[334842830,1723607490400,-1351.32,0.00015068,2]
[334842831,1723607490409,-500.0,0.00015068,2]
[334842832,1723607490419,-500.0,0.00015068,2]
[334842833,1723607490429,-2029.71,0.00015068,2]
[334842834,1723607490439,-1111.34,0.00015068,2]
[334842835,1723607490448,-500.0,0.00015068,2]
[334842836,1723607490458,-3777.94,0.00015068,2]
[334842837,1723607490468,-500.0,0.00015068,2]
[334842838,1723607490477,-500.0,0.00015068,2]
[334842839,1723607490486,-921.58,0.00015068,2]
[334842840,1723607490496,-500.0,0.00015068,2]
[334842841,1723607490506,-689.07,0.00015068,2]
[334842842,1723607490514,-833.34,0.00015068,2]
[334842843,1723607490524,-500.0,0.00015068,2]
[334842844,1723607490533,-500.0,0.00015068,2]
[334842845,1723607490542,-589.77,0.00015068,2]
[334842846,1723607490551,-568.61,0.00015068,2]
[334842847,1723607490560,-500.0,0.00015068,2]
[334842848,1723607490570,-500.0,0.00015068,2]
[334842849,1723607490579,-1554.5,0.00015068,2]
[334842850,1723607490588,-500.0,0.00015068,2]
[334842851,1723607490598,-1921.5,0.00015068,2]
[334842852,1723607490607,-500.0,0.00015068,2]
[334842853,1723607490616,-500.0,0.00015068,2]
[334842854,1723607490625,-783.79,0.00015068,2]
[334842855,1723607490634,-2631.07,0.00015068,2]
[334842856,1723607490643,-500.0,0.00015068,2]
[334842857,1723607490652,-500.0,0.00015068,2]
[334842858,1723607490662,-505.7,0.00015068,2]
[334842859,1723607490671,-500.0,0.00015068,2]
[334842860,1723607490679,-573.43,0.00015068,2]
[334842861,1723607490688,-1200.87,0.00015068,2]
[334842862,1723607490698,-500.0,0.00015068,2]
[334842863,1723607490707,-1361.66,0.00015068,2]
[334842864,1723607490716,-2549.22,0.00015068,2]
[334842865,1723607490725,-500.0,0.00015068,2]
[334842866,1723607490734,-592.75,0.00015068,2]
[334842867,1723607490743,-1917.84,0.00015068,2]
[334842868,1723607490752,-965.13,0.00015068,2]
[334842869,1723607490766,-1397.22,0.00015068,2]
[334842870,1723607490776,-500.0,0.00015068,2]
[334842871,1723607490785,-1460.11,0.00015068,2]
[334842872,1723607490794,-2325.52,0.00015068,2]
[334842873,1723607490803,-500.0,0.00015068,2]
[334842874,1723607490813,-844.41,0.00015068,2]
[334842875,1723607490823,-500.0,0.00015068,2]
[334842876,1723607490832,-764.1,0.00015068,2]
[334842877,1723607490842,-1274.82,0.00015068,2]
[334842878,1723607490851,-1259.41,0.00015068,2]
[334842879,1723607490860,-500.0,0.00015068,2]
[334842880,1723607490870,-500.0,0.00015068,2]
[334842881,1723607490879,-500.0,0.00015068,2]
[334842882,1723607490888,-851.27,0.00015068,2]
[334842883,1723607490898,-929.25,0.00015068,2]
[334842884,1723607490908,-883.88,0.00015068,2]
[334842885,1723607490917,-2127.39,0.00015068,2]
[334842886,1723607490926,-512.16,0.00015068,2]
[334842887,1723607490935,-589.33,0.00015068,2]
[334842888,1723607490944,-1891.32,0.00015068,2]
[334842889,1723607490953,-500.0,0.00015068,2]
[334842890,1723607490963,-1630.74,0.00015068,2]
[334842891,1723607490972,-2624.85,0.00015068,2]
[334842892,1723607490981,-2240.02,0.00015068,2]
[334842893,1723607490991,-2114.43,0.00015068,2]
[334842894,1723607491000,-500.0,0.00015068,2]
[334842895,1723607491010,-2489.36,0.00015068,2]
[334842896,1723607491019,-1834.05,0.00015068,2]
[334842897,1723607491029,-514.91,0.00015068,2]
[334842898,1723607491038,-530.28,0.00015068,2]
[334842899,1723607491047,-657.56,0.00015068,2]
[334842900,1723607491057,-580.46,0.00015068,2]
[334842901,1723607491067,-1292.57,0.00015068,2]
[334842902,1723607491076,-500.0,0.00015068,2]
[334842903,1723607491086,-2155.23,0.00015068,2]
[334842904,1723607491095,-729.49,0.00015068,2]
[334842905,1723607491104,-803.11,0.00015068,2]
[334842906,1723607491114,-500.0,0.00015068,2]
[334842907,1723607491124,-784.66,0.00015068,2]
[334842908,1723607491134,-985.66,0.00015068,2]
[334842909,1723607491144,-1484.83,0.00015068,2]
[334842910,1723607491153,-558.89,0.00015068,2]
[334842911,1723607491162,-500.0,0.00015068,2]
[334842912,1723607491171,-1171.57,0.00015068,2]
[334842913,1723607491180,-500.0,0.00015068,2]
[334842914,1723607491190,-961.68,0.00015068,2]
[334842915,1723607491200,-1433.08,0.00015068,2]
[334842916,1723607491213,-644.74,0.00015068,2]
[334842917,1723607491237,-1605.56,0.00015068,2]
[334842918,1723607491246,-544.66,0.00015068,2]
[334842919,1723607491256,-500.0,0.00015068,2]
[334842920,1723607491266,-161.82522123,0.00015068,2]
[334842921,1723607491276,-671.88,0.00015068,2]
[334842922,1723607491285,-966.64,0.00015068,2]
[334842923,1723607491295,-1438.91,0.00015068,2]
[334842924,1723607491304,-3279.05,0.00015068,2]
[334842925,1723607491313,-1269.61,0.00015068,2]
[334842926,1723607491323,-2431.77,0.00015068,2]
[334842927,1723607491332,-1897.29,0.00015068,2]
[334842928,1723607491342,-500.0,0.00015068,2]
[334842929,1723607491351,-1900.43,0.00015068,2]
[334842930,1723607491361,-2321.53,0.00015068,2]
[334842931,1723607491371,-500.0,0.00015068,2]
[334842932,1723607491380,-500.0,0.00015068,2]
[334842933,1723607491389,-1225.74,0.00015068,2]
[334842934,1723607491401,-751.13,0.00015068,2]
[334842935,1723607491411,-500.0,0.00015068,2]
[334842936,1723607491421,-2710.3,0.00015068,2]
[334842937,1723607491430,-500.0,0.00015068,2]
[334842938,1723607491440,-590.22,0.00015068,2]
[334842939,1723607491449,-1784.2,0.00015068,2]
[334842940,1723607491459,-1096.21,0.00015068,2]
[334842941,1723607491469,-500.0,0.00015068,2]
[334842942,1723607491479,-500.0,0.00015068,2]
[334842943,1723607491488,-500.0,0.00015068,2]
[334842944,1723607491498,-500.0,0.00015068,2]
[334842945,1723607491508,-500.0,0.00015068,2]
[334842946,1723607491518,-843.23,0.00015068,2]
[334842947,1723607491528,-500.0,0.00015068,2]
[334842948,1723607491539,-500.0,0.00015068,2]
[334842949,1723607491548,-500.0,0.00015068,2]
[334842950,1723607491558,-630.2,0.00015068,2]
[334842951,1723607491567,-500.0,0.00015068,2]
[334842952,1723607491577,-500.0,0.00015068,2]
[334842953,1723607491587,-1522.48,0.00015068,2]
[334842954,1723607491596,-500.0,0.00015068,2]
[334842955,1723607491606,-913.08,0.00015068,2]
[334842956,1723607491615,-648.5,0.00015068,2]
[334842957,1723607491625,-500.0,0.00015068,2]
[334842958,1723607491635,-1893.09,0.00015068,2]
[334842959,1723607491646,-915.27,0.00015068,2]
[334842960,1723607491656,-500.0,0.00015068,2]
[334842961,1723607491666,-2186.94,0.00015068,2]
[334842962,1723607491676,-3275.38,0.00015068,2]
[334842963,1723607491685,-500.0,0.00015068,2]
[334842964,1723607491695,-500.0,0.00015068,2]
[334842965,1723607491707,-1677.03,0.00015068,2]
[334842966,1723607491716,-500.0,0.00015068,2]
[334842967,1723607491726,-1309.3,0.00015068,2]
[334842968,1723607491735,-856.83,0.00015068,2]
[334842969,1723607491745,-500.0,0.00015068,2]
[334842970,1723607491755,-500.0,0.00015068,2]
[334842971,1723607491766,-794.25,0.00015068,2]
[334842972,1723607491776,-1414.57,0.00015068,2]
[334842973,1723607491786,-1252.5,0.00015068,2]
[334842974,1723607491796,-3148.01,0.00015068,2]
[334842975,1723607491805,-1119.98,0.00015068,2]
[334842976,1723607491815,-696.1,0.00015068,2]
[334842977,1723607491825,-500.0,0.00015068,2]
[334842978,1723607491835,-500.0,0.00015068,2]
[334842979,1723607491844,-3372.08,0.00015068,2]
[334842980,1723607491855,-500.0,0.00015068,2]
[334842981,1723607491865,-1053.98,0.00015068,2]
[334842982,1723607491875,-1421.12,0.00015068,2]
[334842983,1723607491885,-500.0,0.00015068,2]
[334842984,1723607491900,-6656.08,0.00015068,2]
[334842985,1723607491912,-863.04,0.00015068,2]
[334842986,1723607491921,-500.0,0.00015068,2]
[334842987,1723607491931,-1185.24,0.00015068,2]
[334842988,1723607491941,-640.54,0.00015068,2]
[334842989,1723607491951,-1337.92,0.00015068,2]
[334842990,1723607491961,-500.0,0.00015068,2]
[334842991,1723607491971,-881.61,0.00015068,2]
[334842992,1723607491981,-224.86600273,0.00015068,2]
[334842993,1723607491991,-500.0,0.00015068,2]
[334842994,1723607492001,-4803.1,0.00015068,2]
[334842995,1723607492010,-548.08,0.00015068,2]
[334842996,1723607492020,-500.0,0.00015068,2]
[334842997,1723607492029,-3535.74,0.00015068,2]
[334842998,1723607492040,-500.0,0.00015068,2]
[334842999,1723607492050,-500.0,0.00015068,2]
[334843000,1723607492061,-1286.34,0.00015068,2]
[334843001,1723607492071,-700.94,0.00015068,2]
[334843002,1723607492080,-500.0,0.00015068,2]
[334843003,1723607492090,-500.0,0.00015068,2]
[334843004,1723607492099,-500.0,0.00015068,2]
[334843005,1723607492109,-500.0,0.00015068,2]
[334843006,1723607492120,-605.71,0.00015068,2]
[334843007,1723607492131,-598.92126769,0.00015068,2]
[334843008,1723607492140,-500.0,0.00015068,2]
[334843009,1723607492152,-500.0,0.00015068,2]
[334843010,1723607492163,-2533.03,0.00015068,2]
[334843011,1723607492173,-655.89,0.00015068,2]
[334843012,1723607492184,-528.71,0.00015068,2]
[334843013,1723607492195,-351.30053373,0.00015068,2]
[334843014,1723607492206,-500.0,0.00015068,2]
[334843015,1723607492216,-694.17,0.00015068,2]
[334843016,1723607492225,-500.0,0.00015068,2]
[334843017,1723607492235,-1287.07,0.00015068,2]
[334843018,1723607492245,-764.7,0.00015068,2]
[334843019,1723607492255,-7712.44,0.00015068,2]
[334843020,1723607492266,-500.0,0.00015068,2]
[334843021,1723607492276,-826.02,0.00015068,2]
[334843022,1723607492286,-3051.08,0.00015068,2]
[334843023,1723607492295,-500.0,0.00015068,2]
[334843024,1723607492305,-2301.35,0.00015068,2]
[334843025,1723607492314,-500.0,0.00015068,2]
[334843026,1723607492324,-892.62,0.00015068,2]
[334843027,1723607492334,-573.74,0.00015068,2]
[334843028,1723607492344,-500.0,0.00015068,2]
[334843029,1723607492353,-1107.8,0.00015068,2]
[334843030,1723607492363,-1861.4,0.00015068,2]
[334843031,1723607492373,-500.0,0.00015068,2]
[334843032,1723607492383,-2273.24,0.00015068,2]
[334843033,1723607492393,-2591.06,0.00015068,2]
[334843034,1723607492403,-500.0,0.00015068,2]
[334843035,1723607492413,-665.28,0.00015068,2]
[334843036,1723607492423,-757.85,0.00015068,2]
[334843037,1723607492432,-618.25,0.00015068,2]
[334843038,1723607492441,-500.0,0.00015068,2]
[334843039,1723607492451,-2359.68,0.00015068,2]
[334843040,1723607492460,-1206.64,0.00015068,2]
[334843041,1723607492470,-992.14,0.00015068,2]
[334843042,1723607492479,-616.31,0.00015068,2]
[334843043,1723607492488,-500.0,0.00015068,2]
[334843044,1723607492498,-1728.26,0.00015068,2]
[334843045,1723607492508,-1436.09,0.00015068,2]
[334843046,1723607492517,-1282.64,0.00015068,2]
[334843047,1723607492527,-500.0,0.00015068,2]
[334843048,1723607492536,-1719.54,0.00015068,2]
[334843049,1723607492548,-1106.45,0.00015068,2]
[334843050,1723607492557,-567.82,0.00015068,2]
[334843051,1723607492567,-21892.84,0.00015068,2]
[334843052,1723607492576,-1004.98,0.00015068,2]
[334843053,1723607492585,-1425.33,0.00015068,2]
[334843054,1723607492595,-12983.85,0.00015068,2]
[334843055,1723607492604,-500.0,0.00015068,2]
[334843056,1723607492614,-794.39,0.00015068,2]
[334843057,1723607492623,-500.0,0.00015068,2]
[334843058,1723607492633,-947.71,0.00015068,2]
[334843059,1723607492643,-1334.68,0.00015068,2]
[334843060,1723607492653,-2185.69,0.00015068,2]
[334843061,1723607492663,-74311.05,0.00015068,2]
[334843062,1723607492673,-11265.49,0.00015068,2]
[334843063,1723607492683,-2926.39,0.00015068,2]
[334843064,1723607492693,-500.0,0.00015068,2]
[334843065,1723607492702,-827.11,0.00015068,2]
[334843066,1723607492712,-684.84,0.00015068,2]
[334843067,1723607492721,-19652.25,0.00015068,2]
[334843068,1723607492731,-500.0,0.00015068,2]
[334843069,1723607492740,-949.5,0.00015068,2]
[334843070,1723607492749,-500.0,0.00015068,2]
[334843071,1723607492759,-2325.77,0.00015068,2]
[334843072,1723607492768,-1060.07,0.00015068,2]
[334843073,1723607492778,-500.0,0.00015068,2]
[334843074,1723607492787,-931.34,0.00015068,2]
[334843075,1723607492796,-500.0,0.00015068,2]
[334843076,1723607492806,-11770.95,0.00015068,2]
[334843077,1723607492815,-542.79,0.00015068,2]
[334843078,1723607492825,-3216.15,0.00015068,2]
[334843079,1723607492834,-996.72,0.00015068,2]
[334843080,1723607492844,-500.0,0.00015068,2]
[334843081,1723607492853,-500.0,0.00015068,2]
[334843082,1723607492863,-864.22,0.00015068,2]
[334843083,1723607492872,-1090.63,0.00015068,2]
[334843084,1723607492882,-754.69,0.00015068,2]
[334843085,1723607492892,-500.0,0.00015068,2]
[334843086,1723607492902,-4142.45,0.00015068,2]
[334843087,1723607492911,-500.0,0.00015068,2]
[334843088,1723607492921,-16309.16,0.00015068,2]
[334843089,1723607492931,-2654.22,0.00015068,2]
[334843090,1723607492941,-25466.62,0.00015068,2]
[334843091,1723607492951,-499.73209482,0.00015068,2]
[334843092,1723607492961,-4541.96,0.00015068,2]
[334843093,1723607492972,-519.09,0.00015068,2]
[334843094,1723607492981,-500.0,0.00015068,2]
[334843095,1723607492991,-539.83,0.00015068,2]
[334843096,1723607493000,-889.01,0.00015068,2]
[334843097,1723607493010,-500.0,0.00015068,2]
[334843098,1723607493019,-2396.89,0.00015068,2]
[334843099,1723607493029,-1347.69,0.00015068,2]
[334843100,1723607493038,-677.92,0.00015068,2]
[334843101,1723607493048,-500.0,0.00015068,2]